Cogmind - Beta 13 @@@ ROGUE MODE // 2024.07.16 @ 15:31:47 Player: CrossedViper Result: Destroyed by C-35 Carver with Carbide Saw Performance ------------- Evolutions (6) 3000 Regions Visited (6) 1200 Robots Destroyed (0) 0 Value Destroyed (0) 0 Prototype IDs (0) 0 Alien Tech Used (0) 0 Bonus (1384) 1384 TOTAL SCORE: 5584 Bonus ------- Pacifist 1384 Cogmind --------- Core Integrity 0/1150 Matter 226/300 Energy 98/100 System Corruption 3% Temperature Cool (0) Movement Core (50) Location -4/Factory Parts ------- > --- POWER (2) -------- (None) > --- PROPULSION (10) -- (None) > --- UTILITY (5) ------ Advanced Terrain Scan Processor Graphene Brace > --- WEAPON (2) ------- (None) > --- INVENTORY (5) ---- Light Fission Core Small Storage Unit Improved Utility Shielding Great Axe Peak State ------------ > --- POWER ------------ (None) > --- PROPULSION ------- Field Propulsion Drive > --- UTILITY ---------- Scrap Engine Advanced Terrain Scan Processor Seismic Detector Graphene Brace > --- WEAPON ----------- (None) > --- INVENTORY -------- Light Fission Core Small Storage Unit Improved Utility Shielding Advanced Datajack Great Axe [Rating: 36] Favorites ----------- Power None Propulsion Aluminum Leg Treads Light Treads Leg Aluminum Leg Wheel Armored Wheel Hover Unit Improved Linear Gravjet Flight Unit Field Propulsion Drive Utility ECM Suite Device ECM Suite Processor Advanced Terrain Scan Processor Protection Improved Utility Shielding Weapon Great Axe Slashing Weapon Great Axe Special Melee Weapon Advanced Datajack Build | -11 -10 -10 -10 -7 -5 -4 ------- Run | Yrd Mat Min Sub Rec Fac Fac Slots Evolved 12 | . . . . . 10 2 Power 1 | . . . . . 1 . Propulsion 8 | . . . . . 6 2 Utility 3 | . . . . . 3 . Weapon . | . . . . . . . Parts Attached 17 | 2 . 2 2 . 2 9 Power . | . . . . . . . Engine . | . . . . . . . Core . | . . . . . . . Reactor . | . . . . . . . Propulsion 8 | 2 . 2 . . 1 3 Treads 2 | 2 . . . . . . Leg 3 | . . 2 . . . 1 Wheel 1 | . . . . . 1 . Hover 1 | . . . . . . 1 Flight 1 | . . . . . . 1 Utility 7 | . . . 2 . 1 4 Device 5 | . . . 2 . 1 2 Storage . | . . . . . . . Processor 1 | . . . . . . 1 Hackware . | . . . . . . . Protection 1 | . . . . . . 1 Artifact . | . . . . . . . Weapon 2 | . . . . . . 2 Energy Gun . | . . . . . . . Energy Cannon . | . . . . . . . Ballistic Gun . | . . . . . . . Ballistic Cannon . | . . . . . . . Launcher . | . . . . . . . Special Weapon . | . . . . . . . Impact Weapon . | . . . . . . . Slashing Weapon 1 | . . . . . . 1 Piercing Weapon . | . . . . . . . Special Melee Weapon 1 | . . . . . . 1 Unidentified Prototypes . | . . . . . . . Parts Lost 12 | . . 2 . . 3 7 Power . | . . . . . . . Propulsion 8 | . . 2 . . 2 4 Utility 3 | . . . . . 1 2 Weapon 1 | . . . . . . 1 Highest Loss Streak 4 | . . 2 . . 3 4 To Critical Strikes 1 | . . 1 . . . . Average Slot Usage (%) 30 | . 28 28 57 57 17 20 Treads 4 | . 28 8 . . . . Leg 13 | . . 19 28 28 7 . Device 9 | . . . 28 28 8 8 Processor 1 | . . . . . . 4 Naked Turns . | . . . . . . . Heaviest Build 7 | . . . 3 3 3 7 Greatest Support 20 | 20 3 3 3 3 3 10 Greatest Overweight (x) 2 | . . . . . . 2 Average Overweight (x) . | . . . . . . . Largest Inventory Capacity 5 | 5 5 5 5 5 5 5 Average Capacity 5 | 5 5 5 5 5 5 5 Most Carried 5 | 3 3 5 3 4 5 5 Average Carried 3 | 1 3 3 2 3 4 4 Final Capacity 5 | 5 5 5 5 5 5 5 Final Carried 5 | 3 3 4 2 4 5 4 Class Distribution -------------------- 69% | Mutant 30% | Infiltrator-Mutant Dominant Class ---------------- Mutant | -10/Materials Mutant | -10/Mines Infiltrator-Mutant | -10/Subcaves Infiltrator-Mutant | -7/Recycling Infiltrator-Mutant | -5/Factory Mutant | -4/Factory Resources | -11 -10 -10 -10 -7 -5 -4 ----------- Run | Yrd Mat Min Sub Rec Fac Fac Matter Collected 235 | 166 . 57 . . . 12 Remotely . | . . . . . . . Salvage Created . | . . . . . . . Parts . | . . . . . . . Haulers Intercepted . | . . . . . . . Recyclers Shooed . | . . . . . . . Parts Field Recycled . | . . . . . . . Retrieved Matter . | . . . . . . . Parts Self-Destructed . | . . . . . . . Prevented . | . . . . . . . Kills | -11 -10 -10 -10 -7 -5 -4 ------- Run | Yrd Mat Min Sub Rec Fac Fac Combat Hostiles Destroyed . | . . . . . . . Classes Destroyed . | . . . . . . . Best Kill Streak . | . . . . . . . Combat Bots Only . | . . . . . . . Max Kills in Single Turn . | . . . . . . . Gunslinging . | . . . . . . . Exploded . | . . . . . . . Melee . | . . . . . . . Uniques/NPCs Destroyed . | . . . . . . . Combat | -11 -10 -10 -10 -7 -5 -4 -------- Run | Yrd Mat Min Sub Rec Fac Fac Hostile Shots Fired 226 | . 32 25 16 . 26 127 Missed 89 | . 12 7 6 . 16 48 Damage Taken 2935 | . 168 341 64 . 568 1794 Core 1841 | . 42 166 35 . 423 1175 Absorbed by Shields 80 | . . . . . . 80 Core Remaining (%) 53 | 100 . . . 2 57 . Volleys Fired . | . . . . . . . Largest . | . . . . . . . Hottest . | . . . . . . . Shots Fired . | . . . . . . . Gun . | . . . . . . . Cannon . | . . . . . . . Launcher . | . . . . . . . Special . | . . . . . . . Kinetic . | . . . . . . . Thermal . | . . . . . . . Explosive . | . . . . . . . Electromagnetic . | . . . . . . . Robot Hit Streak . | . . . . . . . Robot Miss Streak . | . . . . . . . Penetration Max . | . . . . . . . Secondary Targets . | . . . . . . . Shots Hit Robots . | . . . . . . . Core Hits . | . . . . . . . Critical Kills . | . . . . . . . Critical Parts Destroyed . | . . . . . . . Critical Strikes . | . . . . . . . Melee Attacks 5 | . . . . . . 5 Impact . | . . . . . . . Slashing 3 | . . . . . . 3 Piercing . | . . . . . . . Sneak Attacks . | . . . . . . . Combat Hostiles . | . . . . . . . Follow-up Attacks . | . . . . . . . Damage Inflicted 11 | . . 9 . . 2 . Guns . | . . . . . . . Cannons . | . . . . . . . Explosions . | . . . . . . . Melee . | . . . . . . . Ramming 11 | . . 9 . . 2 . Kinetic . | . . . . . . . Thermal . | . . . . . . . Explosive . | . . . . . . . Electromagnetic . | . . . . . . . Impact . | . . . . . . . Slashing . | . . . . . . . Piercing . | . . . . . . . Highest Corruption 3 | . . . . . . 3 Average Corruption 3 | . . . . . . 3 Corruption Purged . | . . . . . . . Corruption Blocked . | . . . . . . . Effects 4 | . . . . . . 4 Message Errors 1 | . . . . . . 1 Matter Fused 1 | . . . . . . 1 Energy Discharges 1 | . . . . . . 1 Data Loss (major) 1 | . . . . . . 1 Overload Shots . | . . . . . . . Overflow Damage . | . . . . . . . Projectiles . | . . . . . . . Explosions . | . . . . . . . Melee . | . . . . . . . Knockbacks . | . . . . . . . Impact . | . . . . . . . Kinetic . | . . . . . . . Secondary . | . . . . . . . Self-Inflicted Damage 4 | . . 4 . . . . Shots . | . . . . . . . Rammed 3 | . . 3 . . . . Targets Rammed 4 | . . 3 . . 1 . Kicked 1 | . . . . . 1 . Crushed . | . . . . . . . Highest Temperature 35 | . . . . . 35 3 Average Temperature 19 | . . . . . 35 3 Received Heat Transfer 256 | . 18 . 30 . 45 163 Siege Activations . | . . . . . . . Robots Corrupted . | . . . . . . . Combat Hostiles . | . . . . . . . Parts Fried . | . . . . . . . Impact Corruptions . | . . . . . . . Robots Melted . | . . . . . . . Combat Hostiles . | . . . . . . . Parts Melted . | . . . . . . . Heat Transferred . | . . . . . . . Parts Sabotaged . | . . . . . . . Parts Stolen . | . . . . . . . Parts Stripped . | . . . . . . . Power Chain Reactions . | . . . . . . . Alert | -11 -10 -10 -10 -7 -5 -4 ------- Run | Yrd Mat Min Sub Rec Fac Fac Peak Influence 363 | . 71 82 . 55 98 363 Initial 47 | . . 27 . 43 23 47 Average 83 | . 32 54 . 49 44 181 Maximum Alert Level 1 | . . . . . . 1 Low Security (%) 86 | 100 100 100 . 100 100 50 Level 1 13 | . . . . . . 49 Level 2 . | . . . . . . . Level 3 . | . . . . . . . Level 4 . | . . . . . . . Level 5 . | . . . . . . . High Security . | . . . . . . . Max Security . | . . . . . . . Squads Dispatched 5 | . 2 . . . 1 2 Investigation 1 | . . . . . . 1 Extermination . | . . . . . . . Reinforcement 4 | . 2 . . . 1 1 Assault . | . . . . . . . Garrison . | . . . . . . . Intercept . | . . . . . . . Searches Triggered . | . . . . . . . Construction Impeded . | . . . . . . . Haulers Reinforced . | . . . . . . . Active Scanning Responses . | . . . . . . . Cargo Convoy Interrupts . | . . . . . . . Stealth | -11 -10 -10 -10 -7 -5 -4 --------- Run | Yrd Mat Min Sub Rec Fac Fac Distress Signals 1 | . 1 . . . . . Communications Jammed . | . . . . . . . Distress Signals . | . . . . . . . Times Spotted 68 | . 11 7 12 . 10 28 Peak Tracking Total 12 | . 8 5 6 . 8 12 Tactical Retreats 12 | . 1 3 1 . 1 6 Traps | -11 -10 -10 -10 -7 -5 -4 ------- Run | Yrd Mat Min Sub Rec Fac Fac Traps Triggered 4 | . . . . . 1 3 Indirectly . | . . . . . . . Trap Hack Attempts . | . . . . . . . Triggered . | . . . . . . . Disarmed . | . . . . . . . Reprogrammed . | . . . . . . . Reused . | . . . . . . . Traps Extracted . | . . . . . . . Installed . | . . . . . . . Triggered . | . . . . . . . Machines | -11 -10 -10 -10 -7 -5 -4 ---------- Run | Yrd Mat Min Sub Rec Fac Fac Machines Disabled . | . . . . . . . Max in Single Turn . | . . . . . . . Machines Repaired . | . . . . . . . Machines Dismantled . | . . . . . . . Machines Sabotaged . | . . . . . . . Overloaded Fab Kills . | . . . . . . . Hacking | -11 -10 -10 -10 -7 -5 -4 --------- Run | Yrd Mat Min Sub Rec Fac Fac Machines Accessed 8 | . 3 . . 1 2 2 Terminals 8 | . 3 . . 1 2 2 Fabricators . | . . . . . . . Repair Stations . | . . . . . . . Recycling Units . | . . . . . . . Scanalyzers . | . . . . . . . Garrison Access . | . . . . . . . Total Hacks 22 | . 9 . . 5 3 5 Successful 10 | . 7 . . 2 . 1 Failed 12 | . 2 . . 3 3 4 Catastrophic 3 | . . . . 1 1 1 Database Lockouts . | . . . . . . . Manual 17 | . 9 . . 4 2 2 Terminals 22 | . 9 . . 5 3 5 Fabricators . | . . . . . . . Repair Stations . | . . . . . . . Recycling Units . | . . . . . . . Scanalyzers . | . . . . . . . Garrison Access . | . . . . . . . Terminal Hacks 4 | . 2 . . 1 . 1 Part Schematic 2 | . 1 . . 1 . . Terminal Index 2 | . 1 . . . . 1 Fabricator Hacks . | . . . . . . . Repair Station Hacks . | . . . . . . . Recycling Unit Hacks . | . . . . . . . Scanalyzer . | . . . . . . . Garrison Access Hacks . | . . . . . . . Unauthorized Hacks 6 | . 5 . . 1 . . Terminals 6 | . 5 . . 1 . . Assimilate 1 | . 1 . . . . . Botnet 4 | . 3 . . 1 . . Operators 1 | . 1 . . . . . Fabricators . | . . . . . . . Repair Stations . | . . . . . . . Recycling Units . | . . . . . . . Scanalyzers . | . . . . . . . Garrison Access . | . . . . . . . Data Cores Recovered . | . . . . . . . Used . | . . . . . . . Hacking Detections 7 | . 2 . . 1 2 2 Full Trace Events 1 | . . . . . . 1 Feedback Events . | . . . . . . . Feedback Blocked . | . . . . . . . Robot Schematics Acquired . | . . . . . . . Robots Built . | . . . . . . . Authchips . | . . . . . . . Time . | . . . . . . . Total Robot Build Rating . | . . . . . . . Part Schematics Acquired 2 | . 1 . . 1 . . Parts Built . | . . . . . . . Authchips . | . . . . . . . Time . | . . . . . . . Total Part Build Rating . | . . . . . . . Parts Repaired . | . . . . . . . Time . | . . . . . . . Parts Recycled . | . . . . . . . Recycled Matter . | . . . . . . . Retrieved Matter . | . . . . . . . Retrieved Components . | . . . . . . . Parts Scanalyzed . | . . . . . . . Part Schematics Acquired . | . . . . . . . Parts Damaged . | . . . . . . . Bothacking | -11 -10 -10 -10 -7 -5 -4 ------------ Run | Yrd Mat Min Sub Rec Fac Fac Used RIF Installer . | . . . . . . . Robots Hacked . | . . . . . . . Non-combat . | . . . . . . . Combat . | . . . . . . . Robot Hacks Applied . | . . . . . . . Relay Couplers Released . | . . . . . . . Fabnet Peak Effective % . | . . . . . . . Robots Rewired . | . . . . . . . Allies Hacked . | . . . . . . . Hacks Repelled . | . . . . . . . Allies | -11 -10 -10 -10 -7 -5 -4 -------- Run | Yrd Mat Min Sub Rec Fac Fac Total Allies . | . . . . . . . Largest Group . | . . . . . . . Highest-Rated Group . | . . . . . . . Highest-Rated Ally . | . . . . . . . Total Orders . | . . . . . . . Ally Attacks . | . . . . . . . Total Damage . | . . . . . . . Kills . | . . . . . . . Allies Corrupted . | . . . . . . . Allies Melted . | . . . . . . . Intel | -11 -10 -10 -10 -7 -5 -4 ------- Run | Yrd Mat Min Sub Rec Fac Fac Robot Analysis Total . | . . . . . . . Derelict Logs Recovered 3 | . . 1 2 . . . Drone Launches . | . . . . . . . Drone Recoveries . | . . . . . . . Exploration | -11 -10 -10 -10 -7 -5 -4 ------------- Run | Yrd Mat Min Sub Rec Fac Fac Turns Passed 1322 | 20 50 461 198 78 220 295 Spaces Moved 1692 | 26 98 311 380 147 286 444 Core 1453 | 25 98 311 380 147 286 206 Treads 1 | 1 . . . . . . Legs . | . . . . . . . Wheels . | . . . . . . . Hover 58 | . . . . . . 58 Flight 180 | . . . . . . 180 Fastest Speed 40 | 50 50 50 50 50 50 40 Average Speed 51 | 54 50 50 50 50 50 56 Slowest Speed 160 | 160 50 50 50 50 50 150 Overloaded Moves . | . . . . . . . Propulsion Burnouts . | . . . . . . . Robots Hopped 4 | . . . . . . 4 Cave-ins Triggered . | . . . . . . . Exploration Rate (%) 28 | 4 34 62 22 43 12 20 Regions Visited 6 Branch Regions 3 Pre-discovered Areas 1 | . . . 1 . . . Known Exits Taken . | . . . . . . . Unknown Exits Taken 6 | 1 1 1 1 1 1 . Scrap Searched 1 | . . 1 . . . . Spaces Dug 3 | . . . . . . 3 Terrain Destroyed 3 | . . . . . . 3 Melee 3 | . . . . . . 3 Projectile . | . . . . . . . AOE . | . . . . . . . Terrain Rammed . | . . . . . . . Walls Destroyed . | . . . . . . . Machines Disabled . | . . . . . . . Actions | -11 -10 -10 -10 -7 -5 -4 --------- Run | Yrd Mat Min Sub Rec Fac Fac Total 2121 | 30 98 615 387 150 362 479 Wait 377 | . 1 297 6 3 67 3 Move 1678 | 25 97 310 379 146 285 436 Hop 4 | . . . . . . 4 Pick Up 14 | 3 . 3 . 1 5 2 Fast Attach 7 | 2 . . . . 1 4 Attach 10 | . . 2 2 . 1 5 Detach 2 | . . . . . . 2 Swap . | . . . . . . . Drop 3 | . . . . . 2 1 Fire . | . . . . . . . Melee 5 | . . . . . . 5 Ram 3 | . . 3 . . . . Kick 1 | . . . . . 1 . Crush . | . . . . . . . Escape Stasis 17 | . . . . . . 17 Rewire . | . . . . . . . Trap . | . . . . . . . Miscellaneous . | . . . . . . . Route ------- -11/Scrapyard -10/Materials -10/Mines -10/Subcaves -7/Recycling -5/Factory -4/Factory (discovered 1 exit: [*Res]) History --------- Turn | Location | Event 12 | -11/Scrapyard | Discovered new exit (range 16) 21 | -11/Scrapyard | Entered Materials 64 | -10/Materials | Discovered new exit (range 14) 71 | -10/Materials | Entered Mines 76 | -10/Mines | Assembled infested the area 193 | -10/Mines | Core integrity fell below 50% 222 | -10/Mines | Core integrity fell below 20% 261 | -10/Mines | Received a Rocket Launcher from a helpful Derelict 271 | -10/Mines | Learned 4 Materials zone layouts 302 | -10/Mines | Build established: Mutant 515 | -10/Mines | Discovered new exit (range 5) 532 | -10/Mines | Entered Subcaves 538 | -10/Subcaves | Discovered new exit (range 17) 557 | -10/Subcaves | Visited 4L-MR0's lab 558 | -10/Subcaves | Learned location of 1 exit from Materials 730 | -10/Subcaves | Entered Recycling 731 | -7/Recycling | Found Scrap Engine 805 | -7/Recycling | Discovered new exit (range 7) 808 | -7/Recycling | Entered Factory 808 | -5/Factory | Evolved 10 slots: Power x1, Propulsion x6, Utility x3 839 | -5/Factory | Build established: Infiltrator-Mutant 976 | -5/Factory | Lost 3 parts (2n1u) 1008 | -5/Factory | Discovered new exit (range 16) 1028 | -5/Factory | Entered another Factory area 1028 | -4/Factory | Evolved 2 slots: Propulsion x2 1105 | -4/Factory | Spotted B-86 Titan 1142 | -4/Factory | Spotted B-86 Titan 1225 | -4/Factory | Core integrity fell below 50% 1234 | -4/Factory | Build established: Mutant 1309 | -4/Factory | Discovered new exit (range 15) 1322 | -4/Factory | Core integrity fell below 20% 1323 | -4/Factory | Destroyed by C-35 Carver with Carbide Saw Last Messages --------------- 01276_ Penetrated by Slug. 01276_ Slug penetrates Power Conduit. 01280_ Field Propulsion Drive destroyed. 01283_ Penetrated by Slug. 01287_ Slug penetrates G-67 Veteran. 01287_ Adv. Datajack destroyed. 01288_ Myomer Leg destroyed. 01288_ Construction Platform disabled. 01291_ Penetrated by Slug. 01291_ Slug penetrates Subcomponent Replicator. 01291_ Subcomponent Replicator disabled. 01291_ Penetrated by Slug. 01307_ ALERT: Suspicious intruders detected, dispatching Cutter reinforcements to area. 01309_ EXIT=FOUND 01315_ Imp. Linear Gravjet destroyed. 01321_ Knocked back. 01321_ K-01 Serf destroyed. 01321_ T-07 Excavator destroyed. 01321_ Knocked back. Map ----- +----------------------------------------------------+ | ????????????????????????????????? | | ????????????????????????????????? | | ????????????????????????????????? | | ????????????????????????????????? | | ????????????????????????????????? | | ????????????????????????????????? | | ????????????????????????????????? | | ????????????????????????????????? | | ????????????????????????????????? | | ????????????????????????????????? | | ??????????????????#???#?????????? | | ?????????????????# ??? ?????????? | | ?????????????????# ??? ?????????? | | ?????????????????# ??? ????? #?? | | ????????=????????# ?? ???? #?? | | ?????? =????????# ?"" ???? #?? | | ?????# =????????# """ """ !#?? | | ?????# ???????# """ """ #?? | | ?????# ! ????#### #?? | | ?????# ????? # """ """ #?? | | ?????# ?????# """ """ #?? | | ?????? ???#### """ """ #?? | | ???????? ???# ???? | | ##########/#### # ##???? | | t * %=c ##??? | | @ #??? | | c < ##??? | | #???? | | c H #???? | | ### ##???? | | # ????? | | """ # # "???? | | """ m # + " ??? | | """ # # # " "?? | | """ # " # # " "?? | | # " # # " "?? | | """ ####+### " # # "???? | | """ # # " # #?"???? | | """ # "" # " # #?"???? | | """ + "" # " # #?????? | | # """ # " + #?????? | | "" # """ # " # #?????? | | "" # """ # " # #?????? | | "" # # """ # #?????? | | "" # "" # "T # #?????? | | # "" # """ # #?????? | | """ # "?" # # #?????? | | """ # "?? ######### #?????? | | """ # "??? #???????# #?????? | | """ # ???? #???????? #?????? | +----------------------------------------------------+ Best States ------------- Heat Dissipation 43 Energy Generation 5 Energy Capacity 100 Matter Stores 300 Matter Capacity 300 Sight Range 16 Terrain Scan Density 210 Evasion (%) 61 Item Schematics ----------------- Flight Unit | -10/Materials | Hacked Lgt. Ion Engine | -7/Recycling | Hacked Robot Schematics ------------------ None Fabricated ------------ Nothing Alien Tech Used ----------------- None Achievements -------------- None Challenges ------------ None Game ------ Seed CompositeGravmagPenetrator Manual? 0 Play Time 00:21:13 Cumulative 837.4 hours Start 2024.07.16 @ 15:13:54 End 2024.07.16 @ 15:31:47 Sessions 1 Manual Loads 0 Difficulty Rogue Special Mode None Game No. 527 Rogue 520 Adventurer 0 Explorer 7 Win Type - Total 55 Types 20/5/19/2/0/1/6/1/1 Lore% 90 Gallery% 97 Achievement% 84 Wizard Run 0 Options --------- Layout 2 ASCII 0 Keyboard 0 Movement Numpad Keybinds 0 Fullscreen 1 Font 24/Tamsyn Map View 50x44 Zoom Use 0% Tactical HUD 1 Map Filters NONE Filters NONE Steam 1 RUN: 6da0482e-d20f-46f5-aa32-14579e1b14b6